fUSD/lending_fUSD_20240503
["ID","MTS","AMOUNT","RATE_DAILY","PERIOD"]
[325317240,1714713041319,-736.21819062,0.000249,2]
[325317241,1714713041328,-158095.2116,0.000249,2]
[325317242,1714713041338,-223.13648172,0.000249,2]
[325317243,1714713041347,-151.0,0.000249,7]
[325317244,1714713041356,-151.0,0.000249,7]
[325317245,1714713041366,-151.0,0.000249,7]
[325317246,1714713041378,-151.0,0.000249,7]
[325317247,1714713041387,-151.0,0.000249,7]
[325317248,1714713041396,-204.347628,0.000249,7]
[325317249,1714713041407,-204.347628,0.000249,7]
[325317250,1714713041420,-204.347628,0.000249,7]
[325317251,1714713041430,-151.0,0.000249,7]
[325317252,1714713041439,-204.347628,0.000249,7]
[325317253,1714713041451,-151.0,0.000249,7]
[325317254,1714713041461,-151.0,0.000249,7]
[325317255,1714713041470,-153.327841,0.000249,7]
[325317256,1714713041479,-153.327841,0.000249,7]
[325317257,1714713041488,-153.327841,0.000249,7]
[325317258,1714713041498,-153.327841,0.000249,7]
[325317259,1714713041508,-151.0,0.000249,7]
[325317260,1714713041518,-151.0,0.000249,7]
[325317261,1714713041527,-151.0,0.000249,7]
[325317262,1714713041536,-151.0,0.000249,7]
[325317263,1714713041547,-151.433602,0.000249,7]
[325317264,1714713041556,-151.0,0.000249,7]
[325317265,1714713041565,-151.0,0.000249,7]
[325317266,1714713041575,-151.0,0.000249,7]
[325317267,1714713041584,-151.0,0.000249,7]
[325317268,1714713041593,-151.0,0.000249,7]
[325317269,1714713041604,-151.0,0.000249,7]
[325317270,1714713041613,-158.796204,0.000249,7]
[325317271,1714713041623,-158.796204,0.000249,7]
[325317272,1714713041632,-158.796204,0.000249,7]
[325317273,1714713041641,-158.796204,0.000249,7]
[325317274,1714713041650,-379.738268,0.000249,7]
[325317275,1714713041660,-379.738268,0.000249,7]
[325317276,1714713041669,-379.738268,0.000249,7]
[325317277,1714713041678,-379.738268,0.000249,7]
[325317278,1714713041687,-151.0,0.000249,7]
[325317279,1714713041696,-151.0,0.000249,7]
[325317280,1714713041705,-151.0,0.000249,7]
[325317281,1714713041714,-151.0,0.000249,7]
[325317282,1714713041724,-152.025634,0.000249,7]
[325317283,1714713041733,-156.265614,0.000249,7]
[325317284,1714713041742,-566.48414,0.000249,7]
[325317285,1714713041752,-566.48414,0.000249,7]
[325317286,1714713041762,-566.48414,0.000249,7]
[325317287,1714713041771,-566.48414,0.000249,7]
[325317288,1714713041781,-229.323239,0.000249,7]
[325317289,1714713041790,-229.323239,0.000249,7]
[325317290,1714713041799,-229.323239,0.000249,7]
[325317291,1714713041808,-229.323239,0.000249,7]
[325317292,1714713041818,-246.864804,0.000249,7]
[325317293,1714713041828,-246.864804,0.000249,7]
[325317294,1714713041838,-246.864804,0.000249,7]
[325317295,1714713041848,-246.864804,0.000249,7]
[325317296,1714713041857,-151.0,0.000249,7]
[325317297,1714713041867,-151.0,0.000249,7]
[325317298,1714713041876,-151.0,0.000249,7]
[325317299,1714713041886,-155.006206,0.000249,7]
[325317300,1714713041895,-151.0,0.000249,7]
[325317301,1714713041906,-151.0,0.000249,7]
[325317302,1714713041916,-151.0,0.000249,7]
[325317303,1714713041926,-151.0,0.000249,7]
[325317304,1714713041936,-301.2616,0.000249,7]
[325317305,1714713041946,-301.2616,0.000249,7]
[325317306,1714713041956,-301.2616,0.000249,7]
[325317307,1714713041967,-301.2616,0.000249,7]
[325317308,1714713041977,-190.554086,0.000249,7]
[325317309,1714713041988,-190.554086,0.000249,7]
[325317310,1714713041999,-190.554086,0.000249,7]
[325317311,1714713042009,-190.554086,0.000249,7]
[325317312,1714713042020,-191.227713,0.000249,7]
[325317313,1714713042030,-577.820856,0.000249,7]
[325317314,1714713042040,-191.227713,0.000249,7]
[325317315,1714713042050,-577.820856,0.000249,7]
[325317316,1714713042060,-577.820856,0.000249,7]
[325317317,1714713042300,-577.820856,0.000249,7]
[325317318,1714713042311,-191.227713,0.000249,7]
[325317319,1714713042321,-191.227713,0.000249,7]
[325317320,1714713042331,-2000.0,0.000249,2]
[325317321,1714713042341,-151.0,0.000249,7]
[325317322,1714713042350,-151.0,0.000249,7]
[325317323,1714713042359,-1383.819895,0.000249,7]
[325317324,1714713042370,-1383.819895,0.000249,7]
[325317325,1714713042381,-345.647494,0.000249,7]
[325317326,1714713042390,-1055.258404,0.000249,7]
[325317327,1714713042400,-345.647494,0.000249,7]
[325317328,1714713042412,-1055.258404,0.000249,7]
[325317329,1714713042422,-1383.819895,0.000249,7]
[325317330,1714713042432,-1383.819895,0.000249,7]
[325317331,1714713042442,-345.647494,0.000249,7]
[325317332,1714713042451,-345.647494,0.000249,7]
[325317333,1714713042461,-1055.258404,0.000249,7]
[325317334,1714713042470,-1055.258404,0.000249,7]
[325317335,1714713042480,-151.0,0.000249,7]
[325317336,1714713042490,-204.829479,0.000249,7]
[325317337,1714713042500,-1185.713828,0.000249,7]
[325317338,1714713042510,-1185.713828,0.000249,7]
[325317339,1714713042519,-155.072667,0.000249,7]
[325317340,1714713042529,-1185.713828,0.000249,7]
[325317341,1714713042539,-1185.713828,0.000249,7]
[325317342,1714713042548,-151.0,0.000249,7]
[325317343,1714713042558,-151.0,0.000249,7]
[325317344,1714713042567,-151.0,0.000249,7]
[325317345,1714713042577,-151.0,0.000249,7]
[325317346,1714713042587,-161.130341,0.000249,7]
[325317347,1714713042596,-151.0,0.000249,7]
[325317348,1714713042606,-151.0,0.000249,7]
[325317349,1714713042616,-151.0,0.000249,7]
[325317350,1714713042626,-151.0,0.000249,7]
[325317351,1714713042636,-151.0,0.000249,7]
[325317352,1714713042645,-151.0,0.000249,7]
[325317353,1714713042657,-292.007205,0.000249,7]
[325317354,1714713042667,-406.038925,0.000249,7]
[325317355,1714713042676,-406.038925,0.000249,7]
[325317356,1714713042686,-406.038925,0.000249,7]
[325317357,1714713042696,-151.0,0.000249,7]
[325317358,1714713042707,-151.0,0.000249,7]
[325317359,1714713042717,-151.0,0.000249,7]
[325317360,1714713042727,-406.038925,0.000249,7]
[325317361,1714713042737,-406.038925,0.000249,7]
[325317362,1714713042747,-406.038925,0.000249,7]
[325317363,1714713042759,-153.203861,0.000249,7]
[325317364,1714713042768,-227.648126,0.000249,7]
[325317365,1714713042778,-227.648126,0.000249,7]
[325317366,1714713042788,-265.368068,0.000249,7]
[325317367,1714713042798,-227.648126,0.000249,7]
[325317368,1714713042807,-227.648126,0.000249,7]
[325317369,1714713042816,-458.292197,0.000249,7]
[325317370,1714713042826,-458.292197,0.000249,7]
[325317371,1714713042836,-458.292197,0.000249,7]
[325317372,1714713042846,-458.292197,0.000249,7]
[325317373,1714713042856,-182.382514,0.000249,7]
[325317374,1714713042866,-182.382514,0.000249,7]
[325317375,1714713042877,-341.409824,0.000249,7]
[325317376,1714713042888,-341.409824,0.000249,7]
[325317377,1714713042898,-341.409824,0.000249,7]
[325317378,1714713042914,-341.409824,0.000249,7]
[325317379,1714713042924,-151.0,0.000249,7]
[325317380,1714713042934,-151.0,0.000249,7]
[325317381,1714713042944,-151.0,0.000249,7]
[325317382,1714713042954,-151.0,0.000249,7]
[325317383,1714713042963,-331.20014,0.000249,7]
[325317384,1714713042972,-331.20014,0.000249,7]
[325317385,1714713042982,-331.20014,0.000249,7]
[325317386,1714713042991,-331.20014,0.000249,7]
[325317387,1714713043001,-151.0,0.000249,7]
[325317388,1714713043010,-151.0,0.000249,7]
[325317389,1714713043020,-151.551248,0.000249,7]
[325317390,1714713043030,-170.77773328,0.000249,2]
[325317391,1714713043039,-165.832736,0.000249,7]
[325317392,1714713043049,-165.832736,0.000249,7]
[325317393,1714713043058,-165.832736,0.000249,7]
[325317394,1714713043068,-165.832736,0.000249,7]
[325317395,1714713043078,-1221.744102,0.000249,7]
[325317396,1714713043087,-1221.744102,0.000249,7]
[325317397,1714713043098,-1221.744102,0.000249,7]
[325317398,1714713043107,-1221.744102,0.000249,7]
[325317399,1714713043117,-151.0,0.000249,7]
[325317401,1714713043127,-151.0,0.000249,7]
[325317402,1714713043136,-269.797517,0.000249,7]
[325317403,1714713043145,-151.0,0.000249,7]
[325317404,1714713043156,-151.0,0.000249,7]
[325317405,1714713043166,-167.496064,0.000249,7]
[325317406,1714713043175,-167.496064,0.000249,7]
[325317407,1714713043184,-167.496064,0.000249,7]
[325317408,1714713043194,-167.496064,0.000249,7]
[325317409,1714713043203,-357.476675,0.000249,7]
[325317410,1714713043213,-357.476675,0.000249,7]
[325317411,1714713043222,-357.476675,0.000249,7]
[325317413,1714713043232,-357.476675,0.000249,7]
[325317414,1714713043241,-6885.586009,0.000249,7]
[325317415,1714713043250,-460.658122,0.000249,7]
[325317416,1714713043260,-460.658122,0.000249,7]
[325317417,1714713043269,-151.0,0.000249,7]
[325317418,1714713043278,-151.0,0.000249,7]
[325317419,1714713043286,-333.811523,0.000249,7]
[325317420,1714713043296,-333.811523,0.000249,7]
[325317422,1714713043306,-460.658122,0.000249,7]
[325317424,1714713043315,-460.658122,0.000249,7]
[325317426,1714713043324,-333.811523,0.000249,7]
[325317427,1714713043334,-151.0,0.000249,7]
[325317429,1714713043343,-333.811523,0.000249,7]
[325317430,1714713043352,-151.0,0.000249,7]
[325317431,1714713043362,-151.0,0.000249,7]
[325317432,1714713043373,-151.0,0.000249,7]
[325317433,1714713043383,-445.672558,0.000249,7]
[325317435,1714713043392,-445.672558,0.000249,7]
[325317436,1714713043402,-445.672558,0.000249,7]
[325317437,1714713043414,-445.672558,0.000249,7]
[325317438,1714713043423,-151.0,0.000249,7]
[325317439,1714713043436,-151.0,0.000249,7]
[325317440,1714713043445,-151.0,0.000249,7]
[325317441,1714713043455,-151.0,0.000249,7]
[325317442,1714713043464,-1649.804581,0.000249,7]
[325317443,1714713043474,-1649.804581,0.000249,7]
[325317444,1714713043483,-1649.804581,0.000249,7]
[325317445,1714713043492,-1649.804581,0.000249,7]
[325317446,1714713043502,-949.474239,0.000249,7]
[325317447,1714713043511,-949.474239,0.000249,7]
[325317448,1714713043521,-431.31477,0.000249,7]
[325317449,1714713043530,-431.31477,0.000249,7]
[325317450,1714713043540,-949.474239,0.000249,7]
[325317451,1714713043549,-949.474239,0.000249,7]
[325317452,1714713043559,-431.31477,0.000249,7]
[325317453,1714713043568,-431.31477,0.000249,7]
[325317454,1714713043577,-151.0,0.000249,7]
[325317455,1714713043587,-151.0,0.000249,7]
[325317456,1714713043596,-151.0,0.000249,7]
[325317457,1714713043608,-151.0,0.000249,7]
[325317458,1714713043617,-1366.466633,0.000249,7]
[325317459,1714713043631,-1366.466633,0.000249,7]
[325317460,1714713043642,-1366.466633,0.000249,7]
[325317461,1714713043656,-1366.466633,0.000249,7]
[325317462,1714713043666,-1255.367063,0.000249,7]
[325317463,1714713043676,-1255.367063,0.000249,7]
[325317464,1714713043686,-1255.367063,0.000249,7]
[325317465,1714713043696,-1255.367063,0.000249,7]
[325317466,1714713043706,-258.43022,0.000249,7]
[325317467,1714713043716,-258.43022,0.000249,7]
[325317468,1714713043725,-258.43022,0.000249,7]
[325317469,1714713043736,-258.43022,0.000249,7]
[325317470,1714713043746,-1437.064133,0.000249,7]
[325317471,1714713043759,-1437.064133,0.000249,7]
[325317472,1714713043770,-1437.064133,0.000249,7]
[325317473,1714713043780,-1437.064133,0.000249,7]
[325317474,1714713043787,-2223.912805,0.000249,7]
[325317475,1714713043796,-2223.912805,0.000249,7]
[325317476,1714713043805,-2223.912805,0.000249,7]
[325317477,1714713043815,-2223.912805,0.000249,7]
[325317478,1714713043824,-151.0,0.000249,7]
[325317479,1714713043835,-151.0,0.000249,7]
[325317480,1714713043844,-151.0,0.000249,7]
[325317481,1714713043854,-151.0,0.000249,7]
[325317482,1714713043864,-646.188322,0.000249,7]
[325317483,1714713043873,-646.188322,0.000249,7]
[325317484,1714713043883,-646.188322,0.000249,7]
[325317485,1714713043893,-646.188322,0.000249,7]
[325317486,1714713043904,-151.0,0.000249,7]
[325317487,1714713043913,-151.0,0.000249,7]
[325317488,1714713043923,-151.0,0.000249,7]
[325317489,1714713043933,-151.0,0.000249,7]
[325317490,1714713043943,-287.76431,0.000249,7]
[325317491,1714713043953,-151.0,0.000249,7]
[325317492,1714713043963,-151.0,0.000249,7]
[325317493,1714713043972,-151.0,0.000249,7]
[325317494,1714713043981,-151.0,0.000249,7]
[325317495,1714713043991,-153.328409,0.000249,7]
[325317496,1714713044001,-357.37468,0.000249,7]
[325317497,1714713044010,-153.328409,0.000249,7]
[325317499,1714713044020,-431.29819864,0.000249,2]
[325317500,1714713044030,-357.37468,0.000249,7]
[325317501,1714713044040,-357.37468,0.000249,7]
[325317502,1714713044050,-357.37468,0.000249,7]
[325317503,1714713044060,-153.328409,0.000249,7]
[325317504,1714713044070,-153.328409,0.000249,7]
[325317505,1714713044080,-518.98652904,0.000249,2]
[325317506,1714713044090,-6906.11335478,0.000249,2]
[325317507,1714713044099,-1000.0,0.00024906,2]
[325317508,1714713044109,-500.0,0.00024906,2]
[325317509,1714713044118,-200.0,0.00024907,2]
[325317510,1714713044127,-1000.0,0.00024907,2]
[325317511,1714713044137,-1000.0,0.00024907,2]
[325317512,1714713044147,-500.0,0.00024907,2]
[325317513,1714713044157,-500.0,0.00024907,2]
[325317514,1714713044166,-200.0,0.00024907,2]
[325317515,1714713044175,-2000.0,0.0002491,2]
[325317516,1714713044185,-2000.0,0.0002492,2]
[325317517,1714713044195,-2000.0,0.0002493,2]
[325317518,1714713044204,-2000.0,0.0002494,2]
[325317519,1714713044214,-2000.0,0.0002495,2]
[325317520,1714713044223,-2000.0,0.0002496,2]
[325317521,1714713044232,-2000.0,0.0002497,2]
[325317522,1714713044243,-2000.0,0.0002498,2]
[325317523,1714713044252,-2000.0,0.0002499,2]
[325317524,1714713044262,-547.7494338,0.00024997,2]
[325317525,1714713044272,-150.0,0.00024998,10]
[325317526,1714713044282,-414.28119384,0.00024998,2]
[325317527,1714713044291,-155.15471113,0.00024998,2]
[325317528,1714713044301,-239.61381665,0.00024998,2]
[325317529,1714713044310,-194.76294358,0.00024998,2]
[325317530,1714713044320,-1133.29906697,0.00024998,2]
[325317531,1714713044329,-155.90651929,0.00024998,2]
[325317532,1714713044339,-155.12358547,0.00024998,2]
[325317533,1714713044348,-490.49582274,0.00024998,2]
[325317534,1714713044357,-2250.89391064,0.00024998,2]
[325317535,1714713044368,-155.37085428,0.00024998,2]
[325317536,1714713044381,-417.45617429,0.00024998,2]
[325317537,1714713044390,-898.47487725,0.00024998,2]
[325317538,1714713044399,-1065.40575202,0.00024998,2]
[325317539,1714713044415,-221.40799625,0.00024998,2]
[325317540,1714713044427,-237.56295553,0.00024998,2]
[325317541,1714713044438,-203.97616968,0.00024998,2]
[325317542,1714713044446,-577.36339637,0.00024998,2]
[325317543,1714713044455,-711.0469358,0.00024998,2]
[325317544,1714713044465,-168.08931542,0.00024998,2]
[325317545,1714713044474,-4436.16441549,0.00024998,2]
[325317546,1714713044483,-302.41989939,0.00024998,2]
[325317547,1714713044492,-2259.13022236,0.00024998,2]
[325317548,1714713044502,-155.21536814,0.00024998,2]
[325317549,1714713044513,-767.8903537,0.00024998,2]
[325317550,1714713044522,-362.1184801,0.00024998,10]
[325317551,1714713044531,-4185.21772039,0.00024998,2]
[325317552,1714713044541,-151.0,0.00024998,7]
[325317553,1714713044550,-151.0,0.00024998,7]
[325317554,1714713044560,-158.796204,0.00024998,7]
[325317555,1714713044570,-158.796204,0.00024998,7]
[325317556,1714713044579,-151.0,0.00024998,7]
[325317557,1714713044588,-151.0,0.00024998,7]
[325317558,1714713044597,-566.48414,0.00024998,7]
[325317559,1714713044607,-566.48414,0.00024998,7]
[325317560,1714713044617,-229.323239,0.00024998,7]
[325317561,1714713044627,-229.323239,0.00024998,7]
[325317562,1714713044636,-246.864804,0.00024998,7]
[325317563,1714713044719,-246.864804,0.00024998,7]
[325317564,1714713044729,-151.0,0.00024998,7]
[325317565,1714713044738,-151.0,0.00024998,7]
[325317566,1714713044747,-151.0,0.00024998,7]
[325317567,1714713044757,-301.2616,0.00024998,7]
[325317568,1714713044767,-301.2616,0.00024998,7]
[325317569,1714713044776,-190.554086,0.00024998,7]
[325317570,1714713044785,-190.554086,0.00024998,7]
[325317571,1714713044794,-191.227713,0.00024998,7]
[325317572,1714713044803,-577.820856,0.00024998,7]
[325317573,1714713044812,-577.820856,0.00024998,7]
[325317574,1714713044822,-191.227713,0.00024998,7]
[325317575,1714713044831,-151.0,0.00024998,7]
[325317576,1714713044840,-1383.819895,0.00024998,7]
[325317577,1714713044850,-345.647494,0.00024998,7]
[325317578,1714713044860,-1055.258404,0.00024998,7]
[325317579,1714713044869,-1383.819895,0.00024998,7]
[325317580,1714713044879,-345.647494,0.00024998,7]
[325317581,1714713044889,-1055.258404,0.00024998,7]
[325317582,1714713044899,-1185.713828,0.00024998,7]
[325317583,1714713044910,-1185.713828,0.00024998,7]
[325317584,1714713044919,-155.49931898,0.00024999,10]
[325317585,1714713044928,-155.11852757,0.00024999,2]
[325317586,1714713044939,-427.51019987,0.00024999,2]
[325317587,1714713044948,-151.0,0.00024999,7]
[325317588,1714713044958,-151.0,0.00024999,7]
[325317589,1714713044967,-151.0,0.00024999,7]
[325317590,1714713044976,-151.0,0.00024999,7]
[325317591,1714713044986,-151.0,0.00024999,7]
[325317592,1714713044996,-151.0,0.00024999,7]
[325317593,1714713045006,-180.698331,0.00024999,7]
[325317594,1714713045015,-151.0,0.00024999,7]
[325317595,1714713045025,-151.0,0.00024999,7]
[325317596,1714713045034,-204.347628,0.00024999,7]
[325317597,1714713045044,-204.347628,0.00024999,7]
[325317598,1714713045053,-249.962206,0.00024999,7]
[325317599,1714713045063,-204.347628,0.00024999,7]
[325317600,1714713045072,-204.347628,0.00024999,7]
[325317601,1714713045081,-151.0,0.00024999,7]
[325317602,1714713045091,-151.0,0.00024999,7]
[325317603,1714713045100,-153.327841,0.00024999,7]
[325317604,1714713045109,-153.327841,0.00024999,7]
[325317605,1714713045118,-153.327841,0.00024999,7]
[325317606,1714713045127,-153.327841,0.00024999,7]
[325317607,1714713045136,-151.0,0.00024999,7]
[325317608,1714713045146,-151.0,0.00024999,7]
[325317609,1714713045156,-199.313915,0.00024999,7]
[325317610,1714713045166,-151.0,0.00024999,7]
[325317611,1714713045175,-160.173187,0.00024999,7]
[325317612,1714713045184,-151.0,0.00024999,7]
[325317613,1714713045194,-151.0,0.00024999,7]
[325317614,1714713045203,-217.959698,0.00024999,7]
[325317615,1714713045212,-151.0,0.00024999,7]
[325317616,1714713045221,-151.0,0.00024999,7]
[325317617,1714713045230,-151.0,0.00024999,7]
[325317618,1714713045239,-213.246598,0.00024999,7]
[325317619,1714713045249,-158.796204,0.00024999,7]
[325317620,1714713045257,-158.796204,0.00024999,7]
[325317621,1714713045266,-158.796204,0.00024999,7]
[325317622,1714713045276,-158.796204,0.00024999,7]
[325317623,1714713045286,-158.796204,0.00024999,7]
[325317624,1714713045295,-158.796204,0.00024999,7]
[325317625,1714713045304,-379.738268,0.00024999,7]
[325317626,1714713045313,-379.738268,0.00024999,7]
[325317627,1714713045322,-379.738268,0.00024999,7]
[325317628,1714713045331,-379.738268,0.00024999,7]
[325317629,1714713045341,-379.738268,0.00024999,7]
[325317630,1714713045362,-379.738268,0.00024999,7]
[325317631,1714713045378,-151.0,0.00024999,7]
[325317632,1714713045387,-151.0,0.00024999,7]
[325317633,1714713045400,-208.789561,0.00024999,7]
[325317634,1714713045410,-151.0,0.00024999,7]
[325317635,1714713045423,-151.0,0.00024999,7]
[325317636,1714713045432,-152.866909,0.00024999,7]
[325317637,1714713045442,-566.48414,0.00024999,7]
[325317638,1714713045452,-566.48414,0.00024999,7]
[325317639,1714713045461,-566.48414,0.00024999,7]
[325317640,1714713045470,-566.48414,0.00024999,7]
[325317641,1714713045480,-566.48414,0.00024999,7]
[325317642,1714713045490,-566.48414,0.00024999,7]
[325317643,1714713045500,-229.323239,0.00024999,7]
[325317644,1714713045509,-229.323239,0.00024999,7]
[325317645,1714713045520,-229.323239,0.00024999,7]
[325317646,1714713045532,-229.323239,0.00024999,7]
[325317647,1714713045542,-229.323239,0.00024999,7]
[325317648,1714713045552,-229.323239,0.00024999,7]
[325317649,1714713045561,-246.864804,0.00024999,7]
[325317650,1714713045570,-246.864804,0.00024999,7]
[325317651,1714713045580,-246.864804,0.00024999,7]
[325317652,1714713045589,-246.864804,0.00024999,7]
[325317653,1714713045598,-246.864804,0.00024999,7]
[325317654,1714713045608,-246.864804,0.00024999,7]
[325317655,1714713045618,-151.0,0.00024999,7]
[325317656,1714713045629,-151.0,0.00024999,7]
[325317657,1714713045641,-151.0,0.00024999,7]
[325317658,1714713045652,-151.0,0.00024999,7]
[325317659,1714713045663,-151.0,0.00024999,7]
[325317660,1714713045672,-151.0,0.00024999,7]
[325317661,1714713045682,-301.2616,0.00024999,7]
[325317662,1714713045692,-301.2616,0.00024999,7]
[325317663,1714713045702,-190.554086,0.00024999,7]
[325317664,1714713045711,-190.554086,0.00024999,7]
[325317665,1714713045722,-191.227713,0.00024999,7]
[325317666,1714713045732,-577.820856,0.00024999,7]
[325317667,1714713045742,-577.820856,0.00024999,7]
[325317668,1714713045752,-191.227713,0.00024999,7]
[325317669,1714713045763,-151.0,0.00024999,7]
[325317670,1714713045774,-1383.819895,0.00024999,7]
[325317671,1714713045785,-345.647494,0.00024999,7]
[325317672,1714713045795,-1055.258404,0.00024999,7]
[325317673,1714713045805,-1383.819895,0.00024999,7]
[325317674,1714713045815,-345.647494,0.00024999,7]
[325317675,1714713045825,-1055.258404,0.00024999,7]
[325317676,1714713045835,-1185.713828,0.00024999,7]
[325317677,1714713045845,-1185.713828,0.00024999,7]
[325317678,1714713045855,-151.0,0.00024999,7]
[325317679,1714713045864,-151.0,0.00024999,7]
[325317680,1714713045874,-151.0,0.00024999,7]
[325317681,1714713045885,-406.038925,0.00024999,7]
[325317682,1714713045895,-151.0,0.00024999,7]
[325317683,1714713045905,-406.038925,0.00024999,7]
[325317684,1714713045914,-227.648126,0.00024999,7]
[325317685,1714713045923,-227.648126,0.00024999,7]
[325317686,1714713045933,-458.292197,0.00024999,7]
[325317687,1714713045942,-458.292197,0.00024999,7]
[325317688,1714713045953,-182.382514,0.00024999,7]
[325317689,1714713045964,-341.409824,0.00024999,7]
[325317690,1714713045975,-341.409824,0.00024999,7]
[325317691,1714713045989,-151.0,0.00024999,7]
[325317692,1714713045999,-289.581868,0.00024999,7]
[325317693,1714713046009,-331.20014,0.00024999,7]
[325317694,1714713046019,-331.20014,0.00024999,7]
[325317695,1714713046029,-151.0,0.00024999,7]
[325317696,1714713046039,-888.0,0.00024999,2]
[325317697,1714713046048,-165.832736,0.00024999,7]
[325317698,1714713046058,-165.832736,0.00024999,7]
[325317699,1714713046068,-1221.744102,0.00024999,7]
[325317700,1714713046077,-1221.744102,0.00024999,7]
[325317701,1714713046087,-151.0,0.00024999,7]
[325317702,1714713046097,-151.0,0.00024999,7]
[325317703,1714713046107,-151.0,0.00024999,7]
[325317704,1714713046116,-151.0,0.00024999,7]
[325317705,1714713046127,-167.496064,0.00024999,7]
[325317706,1714713046137,-167.496064,0.00024999,7]
[325317707,1714713046147,-357.476675,0.00024999,7]
[325317708,1714713046157,-357.476675,0.00024999,7]
[325317709,1714713046167,-357.476675,0.00024999,7]
[325317710,1714713046177,-357.476675,0.00024999,7]
[325317711,1714713046186,-357.476675,0.00024999,7]
[325317712,1714713046196,-357.476675,0.00024999,7]
[325317713,1714713046205,-6885.586009,0.00024999,7]
[325317714,1714713046214,-6885.586009,0.00024999,7]
[325317715,1714713046224,-6885.586009,0.00024999,7]
[325317716,1714713046233,-460.658122,0.00024999,7]
[325317717,1714713046243,-460.658122,0.00024999,7]
[325317718,1714713046253,-460.658122,0.00024999,7]
[325317719,1714713046263,-151.0,0.00024999,7]
[325317720,1714713046273,-333.811523,0.00024999,7]
[325317721,1714713046283,-333.811523,0.00024999,7]
[325317722,1714713046294,-333.811523,0.00024999,7]
[325317723,1714713046305,-460.658122,0.00024999,7]
[325317724,1714713046314,-460.658122,0.00024999,7]
[325317725,1714713046325,-460.658122,0.00024999,7]
[325317726,1714713046335,-333.811523,0.00024999,7]
[325317727,1714713046346,-333.811523,0.00024999,7]
[325317728,1714713046355,-333.811523,0.00024999,7]
[325317729,1714713046365,-151.0,0.00024999,7]
[325317730,1714713046378,-151.0,0.00024999,7]
[325317731,1714713046388,-151.0,0.00024999,7]
[325317732,1714713046397,-151.0,0.00024999,7]
[325317733,1714713046407,-151.0,0.00024999,7]
[325317734,1714713046419,-151.0,0.00024999,7]
[325317735,1714713046432,-445.672558,0.00024999,7]
[325317736,1714713046442,-445.672558,0.00024999,7]
[325317737,1714713046454,-445.672558,0.00024999,7]
[325317738,1714713046464,-445.672558,0.00024999,7]
[325317739,1714713046474,-445.672558,0.00024999,7]
[325317740,1714713046484,-445.672558,0.00024999,7]
[325317741,1714713046496,-151.0,0.00024999,7]
[325317742,1714713046507,-151.0,0.00024999,7]
[325317743,1714713046517,-151.0,0.00024999,7]
[325317744,1714713046527,-151.0,0.00024999,7]
[325317745,1714713046538,-151.0,0.00024999,7]
[325317746,1714713046548,-151.0,0.00024999,7]
[325317747,1714713046559,-1649.804581,0.00024999,7]